Cogmind - Beta 14 @@@ ROGUE MODE // 2024.12.10 @ 18:45:02 Player: Two Silent Monoliths Result: Self-destructed Performance ------------- Evolutions (1) 500 Regions Visited (2) 400 Robots Destroyed (13) 65 Value Destroyed (353) 353 Prototype IDs (1) 20 Alien Tech Used (0) 0 Bonus (0) 0 TOTAL SCORE: 1338 Bonus ------- None Cogmind --------- Core Integrity 206/400 Matter 295/300 Energy 64/100 System Corruption 0% Temperature Cool (0) Movement Walking (120) Location -9/Materials Parts ------- > --- POWER (1) -------- (None) > --- PROPULSION (3) --- Aluminum Leg Aluminum Leg > --- UTILITY (3) ------ Small Storage Unit Advanced Targeting Computer > --- WEAPON (2) ------- (None) > --- INVENTORY (8) ---- Improved Heat Sink Weight Redist. System Advanced Targeting Computer Core Shielding Peak State ------------ > --- POWER ------------ Light Nuclear Core > --- PROPULSION ------- Aluminum Leg Aluminum Leg Improved Aluminum Leg > --- UTILITY ---------- Small Storage Unit Advanced Targeting Computer Core Shielding > --- WEAPON ----------- Improved Medium Laser Improved Medium Laser > --- INVENTORY -------- Light Ion Engine Weight Redist. System Advanced Targeting Computer EM Shotgun EM Shotgun [Rating: 19] Favorites ----------- Power Light Nuclear Core Engine Light Ion Engine Power Core Light Nuclear Core Propulsion Aluminum Leg Leg Aluminum Leg Utility Small Storage Unit Device ECM Suite Storage Small Storage Unit Processor Advanced Targeting Computer Protection Core Shielding Weapon Light Assault Rifle Energy Gun Improved Medium Laser Energy Cannon Light EM Pulse Cannon Ballistic Gun Light Assault Rifle Launcher Grenade Launcher Build | -11 -10 -9 ------- Run | Yrd Mat Mat Slots Evolved 2 | . . 2 Power . | . . . Propulsion 1 | . . 1 Utility 1 | . . 1 Weapon . | . . . Parts Attached 24 | 6 7 11 Power 3 | 1 1 1 Engine 2 | 1 . 1 Core 1 | . 1 . Reactor . | . . . Propulsion 6 | 2 1 3 Treads . | . . . Leg 6 | 2 1 3 Wheel . | . . . Hover . | . . . Flight . | . . . Utility 5 | 1 1 3 Device 2 | . 1 1 Storage 1 | 1 . . Processor 1 | . . 1 Hackware . | . . . Protection 1 | . . 1 Artifact . | . . . Weapon 10 | 2 4 4 Energy Gun 4 | . . 4 Energy Cannon 2 | . 2 . Ballistic Gun 3 | 2 1 . Ballistic Cannon . | . . . Launcher 1 | . 1 . Special Weapon . | . . . Impact Weapon . | . . . Slashing Weapon . | . . . Piercing Weapon . | . . . Special Melee Weapon . | . . . Unidentified Prototypes 1 | . . 1 Parts Lost 12 | . 2 10 Power 2 | . . 2 Propulsion 4 | . 1 3 Utility 1 | . . 1 Weapon 5 | . 1 4 Highest Loss Streak 10 | . 2 10 To Critical Strikes . | . . . Average Slot Usage (%) 95 | . 98 83 Engine 4 | . 5 . Core 8 | . 8 8 Leg 26 | . 27 22 Device 11 | . 13 4 Storage 13 | . 14 11 Processor 1 | . . 9 Protection 1 | . . 8 Energy Gun 2 | . . 11 Energy Cannon 9 | . 10 8 Ballistic Gun 12 | . 16 . Peak Build Rating 19 | 6 12 19 Average Rating 9 | 3 8 14 On Entrance 5 | . 6 11 Naked Turns . | . . . Heaviest Build 21 | 10 20 21 Greatest Support 33 | 20 20 33 Greatest Overweight (x) 3 | . 1 3 Average Overweight (x) . | . . . Largest Inventory Capacity 8 | 8 8 8 Average Capacity 7 | 6 8 8 Most Carried 7 | 5 7 6 Average Carried 2 | . 2 4 Final Capacity 8 | 8 8 8 Final Carried 5 | . 5 4 Class Distribution -------------------- 100% | Mutant Dominant Class ---------------- Mutant | -10/Materials Mutant | -9/Materials Resources | -11 -10 -9 ----------- Run | Yrd Mat Mat Matter Collected 437 | 196 161 80 Remotely . | . . . Salvage Created 318 | . 159 159 Parts 30 | . 20 10 Haulers Intercepted . | . . . Recyclers Shooed 1 | . . 1 Parts Field Recycled . | . . . Retrieved Matter . | . . . Parts Self-Destructed . | . . . Prevented . | . . . Kills | -11 -10 -9 ------- Run | Yrd Mat Mat Combat Hostiles Destroyed 5 | . 2 3 Guns 4 | . 1 3 AOE 1 | . 1 . Classes Destroyed 7 | . 6 1 Worker 1 | . 1 . Builder 4 | . 4 . Recycler 1 | . 1 . Operator 1 | . 1 . Watcher 1 | . 1 . Grunt 4 | . 2 2 Sentry 1 | . . 1 Best Kill Streak 10 | . 10 2 Combat Bots Only 2 | . 2 2 Max Kills in Single Turn 5 | . 5 1 Gunslinging . | . . . Exploded 1 | . 1 . Melee . | . . . Uniques/NPCs Destroyed . | . . . Combat | -11 -10 -9 -------- Run | Yrd Mat Mat Hostile Shots Fired 118 | . 10 108 Missed 33 | . 3 30 Damage Taken 1211 | . 337 874 Core 251 | . 57 194 Absorbed by Shields . | . . . Redirected to Shielding 2 | . . 2 Core Remaining (%) 88 | 100 77 . Volleys Fired 31 | . 12 19 Largest 2 | . 2 2 Hottest 112 | . 50 112 Shots Fired 46 | . 14 32 Gun 44 | . 12 32 Cannon . | . . . Launcher 2 | . 2 . Special . | . . . Kinetic 12 | . 12 . Thermal 30 | . . 30 Explosive 2 | . 2 . Electromagnetic 2 | . . 2 Robot Hit Streak 5 | . 5 5 Robot Miss Streak 6 | . 4 6 Penetration Max . | . . . Secondary Targets . | . . . Shots Hit Robots 26 | . 7 19 Core Hits 15 | . 9 6 Critical Kills . | . . . Critical Parts Destroyed . | . . . Critical Strikes 2 | . . 2 Burn 2 | . . 2 Melee Attacks . | . . . Impact . | . . . Slashing . | . . . Piercing . | . . . Sneak Attacks . | . . . Combat Hostiles . | . . . Follow-up Attacks . | . . . Damage Inflicted 1171 | 3 836 332 Guns 387 | . 55 332 Cannons . | . . . Explosions 781 | . 781 . Melee . | . . . Ramming 3 | 3 . . Kinetic 55 | . 55 . Thermal 303 | . . 303 Explosive 781 | . 781 . Electromagnetic 29 | . . 29 Impact . | . . . Slashing . | . . . Piercing . | . . . Highest Corruption . | . . . Average Corruption . | . . . Corruption Purged . | . . . Corruption Blocked . | . . . Overload Shots . | . . . Overflow Damage 70 | . 70 . Projectiles . | . . . Explosions 70 | . 70 . Melee . | . . . Knockbacks . | . . . Impact . | . . . Kinetic . | . . . Secondary . | . . . Self-Inflicted Damage 251 | . 251 . Shots 3 | . 3 . Rammed . | . . . Targets Rammed 1 | 1 . . Kicked 1 | 1 . . Crushed . | . . . Highest Temperature 317 | . 10 317 Average Temperature 166 | . 6 194 Received Heat Transfer 528 | . 42 486 Effects 1 | . . 1 Energy Bleed 1 | . . 1 Siege Activations . | . . . Robots Corrupted . | . . . Combat Hostiles . | . . . Parts Fried . | . . . Impact Corruptions . | . . . Robots Melted . | . . . Combat Hostiles . | . . . Parts Melted . | . . . Heat Transferred 814 | . . 814 Parts Sabotaged . | . . . Parts Stolen . | . . . Parts Stripped . | . . . Power Chain Reactions . | . . . Alert | -11 -10 -9 ------- Run | Yrd Mat Mat Peak Influence 246 | . 246 102 Initial . | . . . Average 49 | . 57 27 Maximum Alert Level 1 | . 1 . Low Security (%) 92 | 100 89 100 Level 1 7 | . 10 . Level 2 . | . . . Level 3 . | . . . Level 4 . | . . . Level 5 . | . . . High Security . | . . . Max Security . | . . . Squads Dispatched 2 | . 1 1 Investigation 1 | . . 1 Extermination . | . . . Reinforcement 1 | . 1 . Assault . | . . . Garrison . | . . . Intercept . | . . . Searches Triggered . | . . . Construction Impeded . | . . . Haulers Reinforced . | . . . Active Scanning Responses . | . . . Cargo Convoy Interrupts . | . . . Stealth | -11 -10 -9 --------- Run | Yrd Mat Mat Distress Signals 2 | . 2 . Communications Jammed . | . . . Distress Signals . | . . . Times Spotted 12 | . 3 9 Peak Tracking Total 6 | . 2 6 Tactical Retreats . | . . . Traps | -11 -10 -9 ------- Run | Yrd Mat Mat Traps Triggered 2 | . 1 1 Indirectly . | . . . Trap Hack Attempts . | . . . Triggered . | . . . Disarmed . | . . . Reprogrammed . | . . . Reused . | . . . Traps Extracted . | . . . Installed . | . . . Triggered . | . . . Machines | -11 -10 -9 ---------- Run | Yrd Mat Mat Machines Disabled 10 | . 7 3 Max in Single Turn 3 | . 3 1 Machines Repaired . | . . . Machines Dismantled . | . . . Machines Sabotaged . | . . . Overloaded Fab Kills . | . . . Hacking | -11 -10 -9 --------- Run | Yrd Mat Mat Machines Accessed 7 | . 5 2 Terminals 6 | . 4 2 Fabricators . | . . . Repair Stations . | . . . Recycling Units 1 | . 1 . Scanalyzers . | . . . Garrison Access . | . . . Total Hacks 16 | . 13 3 Successful 10 | . 8 2 Failed 6 | . 5 1 Catastrophic 2 | . 1 1 Database Lockouts . | . . . Manual . | . . . Terminals 15 | . 12 3 Fabricators . | . . . Repair Stations . | . . . Recycling Units 1 | . 1 . Scanalyzers . | . . . Garrison Access . | . . . Terminal Hacks 9 | . 7 2 Record 2 | . 2 . Alert Level 1 | . . 1 Dispatch Records 1 | . 1 . Surveillance Status 1 | . 1 . Hauler Manifests 2 | . 2 . Registered Components 1 | . . 1 Registered Prototypes 1 | . 1 . Fabricator Hacks . | . . . Repair Station Hacks . | . . . Recycling Unit Hacks 1 | . 1 . Retrieve Matter 1 | . 1 . Scanalyzer . | . . . Garrison Access Hacks . | . . . Unauthorized Hacks . | . . . Terminals . | . . . Fabricators . | . . . Repair Stations . | . . . Recycling Units . | . . . Scanalyzers . | . . . Garrison Access . | . . . Data Cores Recovered . | . . . Used . | . . . Hacking Detections 7 | . 5 2 Full Trace Events 1 | . 1 . Feedback Events . | . . . Feedback Blocked . | . . . Robot Schematics Acquired . | . . . Robots Built . | . . . Authchips . | . . . Time . | . . . Total Robot Build Rating . | . . . Part Schematics Acquired . | . . . Parts Built . | . . . Authchips . | . . . Time . | . . . Total Part Build Rating . | . . . Parts Repaired . | . . . Time . | . . . Parts Recycled . | . . . Recycled Matter . | . . . Retrieved Matter . | . . . Retrieved Components . | . . . Parts Scanalyzed . | . . . Part Schematics Acquired . | . . . Parts Damaged . | . . . Bothacking | -11 -10 -9 ------------ Run | Yrd Mat Mat Used RIF Installer . | . . . Robots Hacked . | . . . Non-combat . | . . . Combat . | . . . Robot Hacks Applied . | . . . Relay Couplers Released . | . . . Fabnet Peak Effective % . | . . . Robots Rewired . | . . . Allies Hacked . | . . . Hacks Repelled . | . . . Allies | -11 -10 -9 -------- Run | Yrd Mat Mat Total Allies . | . . . Largest Group . | . . . Highest-Rated Group . | . . . Highest-Rated Ally . | . . . Total Orders . | . . . Ally Attacks . | . . . Total Damage . | . . . Kills . | . . . Allies Corrupted . | . . . Allies Melted . | . . . Intel | -11 -10 -9 ------- Run | Yrd Mat Mat Robot Analysis Total . | . . . Derelict Logs Recovered . | . . . Drone Launches . | . . . Drone Recoveries . | . . . Exploration | -11 -10 -9 ------------- Run | Yrd Mat Mat Turns Passed 1104 | 51 827 226 Spaces Moved 808 | 43 650 115 Core 23 | 19 . 4 Treads . | . . . Legs 785 | 24 650 111 Wheels . | . . . Hover . | . . . Flight . | . . . Fastest Speed 50 | 50 120 120 Average Speed 120 | 89 120 131 Slowest Speed 200 | 120 190 200 Overloaded Moves . | . . . Propulsion Burnouts . | . . . Robots Hopped . | . . . Cave-ins Triggered . | . . . Exploration Rate (%) 27 | 4 66 12 Regions Visited 2 Branch Regions . Pre-discovered Areas . | . . . Known Exits Taken . | . . . Unknown Exits Taken 2 | 1 1 . Scrap Searched . | . . . Spaces Dug . | . . . Terrain Destroyed 59 | . 59 . Melee . | . . . Projectile . | . . . AOE 59 | . 59 . Terrain Rammed . | . . . Walls Destroyed . | . . . Machines Disabled . | . . . Actions | -11 -10 -9 --------- Run | Yrd Mat Mat Total 892 | 55 680 157 Wait . | . . . Move 806 | 42 649 115 Hop . | . . . Pick Up 25 | 6 10 9 Fast Attach . | . . . Attach 17 | 6 3 8 Detach . | . . . Swap 7 | . 4 3 Drop 5 | . 2 3 Fire 31 | . 12 19 Melee . | . . . Ram . | . . . Kick 1 | 1 . . Crush . | . . . Escape Stasis . | . . . Rewire . | . . . Trap . | . . . Miscellaneous . | . . . Route ------- -11/Scrapyard -10/Materials (discovered 3 exits: *Mat x2 / [*Min]) -9/Materials History --------- Turn | Location | Event 8 | -11/Scrapyard | Discovered new exit (range 16) 52 | -11/Scrapyard | Entered Materials 312 | -10/Materials | Build established: Mutant 389 | -10/Materials | Discovered new exit (range 15) 694 | -10/Materials | Discovered new exit (range 10) 826 | -10/Materials | Discovered new exit (range 16) 879 | -10/Materials | Entered another Materials area 879 | -9/Materials | Evolved 2 slots: Propulsion x1, Utility x1 1105 | -9/Materials | Self-destructed Last Messages --------------- Critical hit (Burn: +37). G-47 Trooper destroyed. R-06 Scavenger collects Beam Rifle. G-34 Mercenary suffers critical hit (Burn). Integration Channel disabled. Lgt. Nuclear Core destroyed. Integration Channel disabled. Aluminum Leg destroyed. G-34 Mercenary destroyed. Imp. Medium Laser destroyed. Overheating: Energy bleed (-18). Imp. Aluminum Leg destroyed. Imp. Medium Laser destroyed. EM Shotgun destroyed. Acquired Aluminum Leg. Acquired 30 matter. Lgt. Ion Engine destroyed. Acquired Aluminum Leg. Acquired Imp. Heat Sink. Heat Sink destroyed. Map ----- +----------------------------------------------------+ | | | | | | | | | | | | | | | | | | | | | | | | | | | | | | | | | | | | | | | | | ?????????????????????????????????????????????????? | | ???????##########################????????????????? | | ???????# #????????????????? | | ???????# #######??????????? | | ######## g g #"""""#??????????? | | r a @ #""T""#######+##?? | | ####################+## [ #? | | #?????????????# #% | | #?????????????# ] # gg""""" ^ """"" | | ####??????????# |] * #gg" """""" """"""""" | | #??????????# [ # "" """ "" """ ?? | | +??????????# # ^ #? | | #??????????######### ! #? | | #????????????????# [%= """"" #? | | #????????????????# " """"""" ##? | | #????????????????# "" ""??????? | | #????????????????# % ????? | | #????????????????# "T" ???? | | #????????????????### ##############T##### ????? | | #??????????????????# ??????????????##?????????? | | ???????????????????# ?????????????????????????? | | ?????????????????????? ?????????????????????????? | | ?????????????????????? ?????????????????????????? | | ????????????????????? ?????????????????????????? | | ????????????????????? ?????????????????????????? | | ????????????????????# ??????????????????????????? | | ?????????????????????????????????????????????????? | | ?????????????????????????????????????????????????? | | ?????????????????????????????????????????????????? | | ?????????????????????????????????????????????????? | +----------------------------------------------------+ Best States ------------- Heat Dissipation 38 Energy Generation 14 Energy Capacity 160 Matter Stores 300 Matter Capacity 300 Sight Range 16 Terrain Scan Density 10 ECM Strength 1 Core Shielding 20 Evasion (%) 55 Targeting Accuracy 8 Item Schematics ----------------- None Robot Schematics ------------------ None Fabricated ------------ Nothing Alien Tech Used ----------------- None Achievements -------------- None Challenges ------------ None Game ------ Seed FlightRiotShielding Manual? 0 Play Time 00:11:58 Cumulative 3.6 hours Start 2024.12.10 @ 18:32:22 End 2024.12.10 @ 18:45:02 Sessions 1 Manual Loads 0 Difficulty Rogue Special Mode None Game No. 5 Rogue 5 Adventurer 0 Explorer 0 Win Type - Total 0 Types 0/0/0/0/0/0/0/0/0 Lore% 3 Gallery% 8 Achievement% 12 Wizard Run 0 Options --------- Layout 1 ASCII 0 Keyboard 0 Movement Arrows Keybinds 0 Fullscreen 1 Font 24/Smallcaps Map View 50x35 Zoom Use 0% Tactical HUD 0 Map Filters NONE Filters NONE Steam 1 RUN: 2e4021b1-47a5-4daa-adfe-6f594f8be1b2